bitfinex/quotes_ETHUSD_20241018
["timestamp","ask_amount","ask_price","bid_price","bid_amount"]
[1729242785245,0.7904,2637.1,2636.3,4.80251075]
[1729242786136,3.79162,2637.4,2636.5,3.7928]
[1729242786364,0.7731,2637.5,2636.6,3.86858599]
[1729242786669,0.7731,2637.5,2636.7,0.7661386]
[1729242786969,4.56459,2637.5,2636.7,0.7661386]
[1729242787174,4.56459,2637.5,2636.5,3.7928]
[1729242787466,4.56459,2637.5,2636.5,7.58561]
[1729242787639,4.56459,2637.5,2636.5,3.7928]
[1729242787844,4.56459,2637.5,2636.5,7.5856]
[1729242788275,8.26292607,2637.5,2636.5,3.7928]
[1729242788564,9.46835468,2637.5,2636.6,4.22703]
[1729242789533,3.79161,2637.4,2636.6,4.22703]
[1729242789776,7.58333,2637.4,2636.6,0.43428]
[1729242789943,3.79161,2637.4,2636.6,0.43428]
[1729242790554,0.8326,2637.3,2636.4,7.34295]
[1729242790764,0.8326,2637.3,2636.5,3.79284]
[1729242791057,0.8326,2637.3,2636.5,3.79282]
[1729242791634,0.8326,2637.3,2636.6,3.79273]
[1729242792549,0.8326,2637.3,2636.7,3.79261]
[1729242792872,0.8326,2637.3,2636.8,0.379261]
[1729242793980,0.8326,2637.3,2636.9,0.05137239]
[1729242796191,0.8326,2637.3,2636.9,3.84366239]
[1729242796837,0.8326,2637.3,2637.0,3.7921]
[1729242797041,3.70833607,2637.9,2637.1,3.84386327]
[1729242797042,0.7522,2637.6,2637.1,3.84386327]
[1729242797279,0.7522,2637.6,2637.1,3.84378327]
[1729242797487,0.7522,2637.6,2637.2,3.79185]
[1729242797685,0.7522,2637.6,2637.2,3.84359707]
[1729242797891,0.7522,2637.6,2637.2,0.05174707]
[1729242798256,0.7522,2637.6,2637.2,3.84356707]
[1729242798469,0.7522,2637.6,2637.2,0.05174707]
[1729242799568,0.7522,2637.6,2637.2,3.84364707]
[1729242802953,0.7522,2637.6,2637.3,3.79173]
[1729242803158,0.7522,2637.6,2637.3,3.84330634]
[1729242805083,0.7522,2637.6,2637.4,3.7916]
[1729242805456,1.16803361,2637.9,2637.5,3.79144]
[1729242805654,0.7962,2637.9,2637.6,0.05126709]
[1729242806468,4.5871,2637.9,2637.6,0.05126709]
[1729242806672,4.5871,2637.9,2637.4,3.7916]
[1729242806882,0.7962,2637.9,2637.5,0.05131946]
[1729242807259,4.58717,2637.9,2637.5,0.05131946]
[1729242808302,4.58717,2637.9,2637.6,0.05123329]
[1729242808455,3.79104,2637.8,2637.3,3.79163]
[1729242808655,3.79104,2637.8,2637.4,0.05140565]
[1729242809360,0.837803,2637.8,2637.4,0.05140565]
[1729242809586,4.5659,2637.6,2637.4,0.05140565]
[1729242809856,3.79146,2637.5,2637.0,3.79209]
[1729242810169,3.79146,2637.5,2636.8,4.171641]
[1729242810170,3.79185,2637.3,2636.8,3.79242]
[1729242810491,3.79212,2637.1,2636.5,3.79278]
[1729242810896,3.79212,2637.1,2636.4,3.79299]
[1729242811234,3.79212,2637.1,2636.6,3.79274]
[1729242812025,0.7928,2637.0,2636.6,3.79274]
[1729242812492,0.7928,2637.0,2636.6,7.58542]
[1729242813022,0.7928,2637.0,2636.7,3.7926]
[1729242813432,0.7928,2637.0,2636.8,3.79246]
[1729242815795,0.825,2637.3,2636.9,3.79231]
[1729242816600,0.825,2637.3,2636.9,3.79233]
[1729242818143,0.8278,2637.5,2637.0,3.69833607]
[1729242818432,4.619,2637.7,2637.2,3.79188]
[1729242818730,4.619,2637.7,2637.1,7.58398]
[1729242819038,4.619,2637.7,2637.1,7.58391]
[1729242819337,4.619,2637.7,2637.1,3.79194]
[1729242819338,6.194999,2637.7,2637.1,3.79194]
[1729242819495,6.194999,2637.7,2637.1,7.58389]
[1729242820015,6.194999,2637.7,2637.1,3.79194]
[1729242820214,3.79139,2637.6,2637.1,4.77151974]
[1729242820721,0.7841,2637.5,2637.0,3.7921]
[1729242821038,4.57558,2637.5,2637.0,3.7921]
[1729242821337,4.57558,2637.5,2637.1,0.98033101]
[1729242821504,0.7841,2637.5,2637.2,0.9811073]
[1729242821709,4.57557,2637.5,2637.1,4.57595097]
[1729242821924,4.57557,2637.5,2637.2,0.98110208]
[1729242822119,4.57557,2637.5,2637.1,4.57595097]
[1729242822323,4.57557,2637.5,2637.2,0.98110137]
[1729242822624,4.57557,2637.5,2637.3,0.98200082]
[1729242822822,4.57557,2637.5,2637.2,0.78394097]
[1729242823029,4.57557,2637.5,2637.3,0.98200126]
[1729242823199,4.57557,2637.5,2637.2,0.78394097]
[1729242823399,4.57557,2637.5,2637.3,0.9820013]
[1729242823595,4.57557,2637.5,2637.4,0.9820013]
[1729242824040,4.57557,2637.5,2637.4,0.04996172]
[1729242824245,5.5698609,2637.5,2637.4,0.04996172]
[1729242824447,0.7841,2637.5,2637.4,0.98320912]
[1729242824601,0.7841,2637.5,2637.4,1.817109]
[1729242824800,0.7841,2637.5,2637.4,1.03316803]
[1729242825026,0.7841,2637.5,2637.4,3.52184294]
[1729242825212,3.7911,2637.8,2637.4,1.03316803]
[1729242825411,0.7762,2637.7,2637.5,1.77703581]
[1729242825702,0.7762,2637.7,2637.6,1.03293087]
[1729242826320,0.7762,2637.7,2637.6,3.52406483]
[1729242826557,0.7762,2637.7,2637.6,1.03293087]
[1729242826707,0.7762,2637.7,2637.6,3.52401256]
[1729242827339,0.7762,2637.7,2637.6,1.82821711]
[1729242827655,0.7762,2637.7,2637.6,1.83143332]
[1729242829410,4.56738,2637.7,2637.6,1.03613732]
[1729242829982,5.703223,2637.7,2637.6,1.03619712]
[1729242830310,5.703223,2637.7,2637.6,0.04972175]
[1729242830510,5.703223,2637.7,2637.3,0.795296]
[1729242830746,3.79146,2637.5,2637.2,0.795296]
[1729242830920,4.55712,2637.4,2637.3,0.98660226]
[1729242831120,4.936266,2637.4,2637.3,0.98660226]
[1729242831650,4.936266,2637.4,2637.1,0.795296]
[1729242831809,4.936266,2637.4,2637.2,0.98670707]
[1729242832014,4.936266,2637.4,2637.1,0.795296]
[1729242832260,4.936266,2637.4,2637.2,0.98670777]
[1729242832417,4.936266,2637.4,2637.0,0.795296]
[1729242832617,4.936266,2637.4,2637.1,0.98670196]
[1729242832923,4.936266,2637.4,2637.0,0.795296]
[1729242833142,4.936266,2637.4,2637.1,0.98670237]
[1729242833458,3.79177,2637.3,2636.9,0.795296]
[1729242833751,4.6645676,2637.3,2637.0,0.98671236]
[1729242833955,4.6645676,2637.3,2636.8,4.587656]
[1729242834157,4.6645676,2637.3,2636.9,0.98671365]
[1729242834444,4.6645676,2637.3,2637.0,0.98671365]
[1729242834645,3.79177,2637.3,2636.8,4.587656]
[1729242834855,3.79177,2637.3,2636.9,0.9867247]
[1729242835069,3.79177,2637.3,2636.8,8.380056]
[1729242835211,3.79177,2637.3,2636.9,0.98668044]
[1729242835409,0.7655,2637.4,2636.8,4.587656]
[1729242835615,0.7655,2637.4,2637.0,3.79211]
[1729242836433,4.55712,2637.4,2636.9,5.29546238]
[1729242836636,4.55712,2637.4,2637.0,0.98665422]
[1729242836847,4.55712,2637.4,2636.9,4.587546]
[1729242837052,4.55712,2637.4,2637.0,0.98665898]
[1729242837262,4.55712,2637.4,2636.9,4.587546]
[1729242837431,4.55712,2637.4,2637.0,0.98665626]
[1729242837625,4.55712,2637.4,2636.9,4.587546]
[1729242837862,4.55712,2637.4,2637.0,0.98668503]
[1729242838061,4.55712,2637.4,2636.9,3.79225]
[1729242838272,4.55712,2637.4,2637.0,0.98669567]
[1729242838467,4.55712,2637.4,2636.9,4.587546]
[1729242838772,4.55712,2637.4,2637.0,0.98668859]
[1729242838967,4.55712,2637.4,2637.0,0.04849102]
[1729242841554,0.7655,2637.4,2637.0,3.84064102]
[1729242842226,0.7655,2637.4,2637.0,3.84060102]
[1729242842423,0.7655,2637.4,2637.1,4.77865764]
[1729242842626,0.7655,2637.4,2637.1,3.79203]
[1729242842867,0.7655,2637.4,2637.2,0.04831861]
[1729242843065,4.55712,2637.4,2637.2,0.04831861]
[1729242843362,5.391987,2637.4,2637.0,0.98668962]
[1729242843569,5.391987,2637.4,2637.3,0.04823241]
[1729242843865,5.391987,2637.4,2637.0,0.98669079]
[1729242844039,5.391987,2637.4,2637.3,0.04818248]
[1729242844237,5.391987,2637.4,2636.9,3.79224]
[1729242844440,4.55712,2637.4,2637.3,0.04818248]
[1729242844667,4.55712,2637.4,2636.9,7.58444]
[1729242844868,4.55712,2637.4,2637.3,0.04818248]
[1729242845070,4.55712,2637.4,2636.9,7.58444]
[1729242845273,4.55712,2637.4,2637.3,0.04818248]
[1729242845568,5.012832,2637.4,2637.3,0.04818248]
[1729242845863,5.012832,2637.4,2637.0,3.79217]
[1729242846040,5.012832,2637.4,2637.3,0.04818248]
[1729242846041,4.55712,2637.4,2637.3,0.04818248]
[1729242846571,4.55712,2637.4,2637.3,0.04823318]
[1729242846870,4.55712,2637.4,2637.0,3.79217]
[1729242847032,4.55712,2637.4,2637.3,0.04823318]
[1729242847232,4.55712,2637.4,2637.0,3.79217]
[1729242847753,4.55712,2637.4,2637.1,0.04840558]
[1729242849754,1.65839548,2637.3,2636.9,4.77905034]
[1729242849955,1.65839548,2637.3,2637.2,0.04831938]
[1729242850155,1.65839548,2637.3,2636.9,3.79228]
[1729242850479,4.55712,2637.4,2636.9,3.79228]
[1729242850480,4.55712,2637.4,2637.0,0.98679337]
[1729242850779,4.55712,2637.4,2637.0,0.04849179]
[1729242852775,5.55781355,2637.4,2637.0,0.04849179]
[1729242852947,11.00793903,2637.4,2637.0,0.04849179]
[1729242853280,7.21620903,2637.4,2637.0,0.04849179]
[1729242854941,1.65839548,2637.3,2637.0,0.04849179]
[1729242855242,1.65839548,2637.2,2637.0,0.04849179]
[1729242855443,5.45015548,2637.3,2637.0,0.04849179]
[1729242856879,3.79176,2637.3,2637.0,0.04849179]
[1729242857787,5.45015548,2637.3,2637.0,0.04849179]
[1729242858161,3.79176,2637.3,2637.0,0.04849179]
[1729242858485,5.45015548,2637.3,2637.0,0.04849179]
[1729242858848,6.55095238,2637.3,2637.0,0.04849179]
[1729242859479,4.55712,2637.4,2637.0,0.04849179]
[1729242859693,4.61259,2637.6,2637.1,4.77905312]
[1729242859989,4.61259,2637.6,2637.2,0.04841232]
[1729242860403,4.61259,2637.6,2637.2,3.84022232]
[1729242860404,0.8212,2637.6,2637.2,3.84022232]
[1729242860573,3.79118,2637.7,2637.3,3.79166]
[1729242860766,3.79118,2637.7,2637.3,3.83998612]
[1729242860767,5.44957548,2637.7,2637.3,3.83998612]
[1729242861315,1.65839548,2637.7,2637.3,3.83998612]
[1729242863320,5.44958548,2637.7,2637.3,3.83998612]
[1729242863518,5.44958548,2637.7,2637.3,0.04832612]
[1729242863519,5.44972548,2637.6,2637.3,0.04832612]
[1729242863839,5.44988548,2637.5,2637.0,0.795296]
[1729242864010,2.46889548,2637.4,2637.1,1.78250463]
[1729242864314,6.26052548,2637.4,2637.0,0.795296]
[1729242864620,6.26052548,2637.4,2637.1,0.98723798]
[1729242864776,6.26052548,2637.4,2637.2,0.98725306]
[1729242864978,4.60213,2637.4,2637.0,0.795296]
[1729242865187,4.60213,2637.4,2637.1,1.78255015]
[1729242865188,0.8105,2637.4,2637.1,1.78255015]
[1729242865489,0.8105,2637.4,2637.2,0.98725415]
[1729242865692,0.8105,2637.4,2637.1,0.795296]
[1729242865893,0.8105,2637.4,2637.2,0.98726574]
[1729242866221,6.26058548,2637.4,2637.0,0.795296]
[1729242866386,4.60219,2637.4,2637.1,1.78257604]
[1729242866588,4.60219,2637.4,2637.2,0.98728004]
[1729242866908,4.60219,2637.4,2637.1,0.795296]
[1729242867212,4.60219,2637.4,2637.2,0.98729286]
[1729242867404,4.60219,2637.4,2637.1,0.795296]
[1729242867664,4.60219,2637.4,2637.2,0.98730639]
[1729242867917,4.60219,2637.4,2637.1,0.795296]
[1729242868221,3.79175,2637.3,2637.0,0.795296]
[1729242868518,3.79175,2637.3,2637.1,0.98732372]
[1729242868692,3.79175,2637.3,2637.0,0.795296]
[1729242869018,3.79175,2637.3,2637.1,1.03427516]
[1729242869309,3.79175,2637.3,2637.1,0.0469219]
[1729242870476,7.58363,2637.3,2637.1,0.0469219]
[1729242870677,3.7919,2637.2,2637.1,0.0469219]
[1729242870878,3.7919,2637.2,2637.1,1.03431888]
[1729242871686,3.7919,2637.2,2637.1,0.0469219]
[1729242871881,2.46889548,2637.4,2637.1,1.03436842]
[1729242871882,0.8105,2637.4,2637.1,1.03436842]
[1729242872211,3.79177,2637.3,2637.2,0.0468357]
[1729242872529,3.79177,2637.3,2636.8,4.96838145]
[1729242872530,3.79177,2637.3,2637.0,0.795296]
[1729242872726,3.79177,2637.3,2637.2,0.0468357]
[1729242873036,3.79155,2637.5,2637.2,0.0468357]
[1729242873222,3.79155,2637.5,2637.0,6.24587148]
[1729242873385,3.79155,2637.5,2637.1,1.03442557]
[1729242873585,3.79161,2637.4,2637.2,0.98750367]
[1729242873811,3.79161,2637.4,2637.3,0.04677204]
[1729242874028,3.79161,2637.4,2637.0,6.24587148]
[1729242874181,3.79161,2637.4,2637.1,1.03455141]
[1729242874386,3.79161,2637.4,2637.2,0.98760697]
[1729242874627,3.79161,2637.4,2637.3,0.04677204]
[1729242874796,3.79161,2637.4,2637.1,0.795296]
[1729242874984,3.79161,2637.4,2637.2,1.03458835]
[1729242875186,3.79161,2637.4,2637.2,0.04685823]
[1729242875387,3.79155,2637.5,2637.2,0.04685823]
[1729242876519,7.58312,2637.5,2637.2,0.04685823]
[1729242876720,7.58313,2637.5,2637.2,0.04685823]
[1729242877490,4.55022,2637.6,2637.2,0.04685823]
[1729242877698,6.20861548,2637.6,2637.2,0.04685823]
[1729242878634,3.79149,2637.5,2637.2,0.04685823]
[1729242879649,6.20861548,2637.6,2637.2,0.04685823]
[1729242881011,3.79175,2637.3,2637.2,0.04685823]
[1729242881415,3.79175,2637.3,2637.0,0.795296]
[1729242881619,3.79175,2637.3,2637.2,0.04683568]
[1729242881820,3.79175,2637.3,2637.2,0.98795698]
[1729242882045,3.79175,2637.3,2637.2,1.03479266]
[1729242883934,3.79175,2637.3,2637.2,1.03476491]
[1729242888880,3.79175,2637.3,2637.2,1.03478439]
[1729242894047,3.79175,2637.3,2637.2,1.03485318]
[1729242896056,3.79175,2637.3,2637.2,1.03487129]
[1729242896449,3.79175,2637.3,2637.2,1.03488104]
[1729242896854,3.79157,2637.5,2637.2,1.03491773]
[1729242897070,3.79157,2637.5,2637.2,0.04683568]
[1729242897255,1.75888355,2637.6,2637.2,0.04683568]
[1729242897596,3.79151,2637.5,2637.2,0.04683568]
[1729242904479,3.79148,2637.5,2637.2,0.04683568]
[1729242907179,4.55023,2637.6,2637.2,0.04683568]
[1729242907491,7.58274,2637.6,2637.3,0.98814546]
[1729242907706,7.58274,2637.6,2637.2,0.04683568]
[1729242907990,7.58274,2637.6,2637.4,0.04666048]
[1729242908294,3.79148,2637.5,2637.1,4.5886291]
[1729242908500,3.79148,2637.5,2637.2,0.98821373]
[1729242908789,3.79148,2637.5,2637.3,0.98821373]
[1729242909007,3.79133,2637.6,2637.1,6.24696458]
[1729242909303,3.79133,2637.6,2637.2,0.98830379]
[1729242909520,7.58274,2637.6,2637.3,0.98830379]
[1729242909665,7.58274,2637.6,2637.2,0.7965991]
[1729242910010,7.58274,2637.6,2637.3,0.98836531]
[1729242910197,7.58274,2637.6,2637.2,0.7965991]
[1729242910394,7.58274,2637.6,2637.3,0.98836827]
[1729242910598,3.7915,2637.5,2637.2,0.7965991]
[1729242910768,3.7915,2637.5,2637.3,0.98837602]
[1729242910964,3.7915,2637.5,2637.2,0.7965991]
[1729242911191,3.7915,2637.5,2637.3,0.98837545]
[1729242911380,3.7915,2637.5,2637.2,0.7965991]
[1729242911593,3.7915,2637.5,2637.3,0.98840547]
[1729242911804,3.7915,2637.5,2637.1,4.5885691]
[1729242911984,3.7915,2637.5,2637.2,0.98840904]
[1729242912303,3.7915,2637.5,2637.1,4.5885691]
[1729242912614,3.7915,2637.5,2637.2,0.98841023]
[1729242912801,3.79133,2637.6,2637.1,8.3805191]
[1729242912988,3.79133,2637.6,2637.2,5.90368413]
[1729242913313,3.79133,2637.6,2637.2,4.91525132]
[1729242913608,7.58276,2637.6,2637.3,0.98842577]
[1729242913813,3.79133,2637.6,2637.2,0.7965991]
[1729242914102,3.79133,2637.6,2637.3,1.03517594]
[1729242914312,3.79133,2637.6,2637.3,0.04672413]
[1729242914613,3.79133,2637.6,2637.2,0.7965991]
[1729242914905,3.79133,2637.6,2637.3,1.03517608]
[1729242915114,3.79152,2637.5,2637.3,0.04672413]
[1729242915284,3.79161,2637.4,2637.3,0.04672413]
[1729242915484,3.79161,2637.4,2637.1,0.7965991]
[1729242915713,3.79161,2637.4,2637.2,1.03521939]
[1729242915892,3.79161,2637.4,2637.3,0.98845694]
[1729242916096,3.79161,2637.4,2637.3,1.03513319]
[1729242916302,3.79133,2637.6,2637.3,0.04667625]
[1729242916797,7.58274,2637.6,2637.4,0.04658443]
[1729242917121,3.79154,2637.5,2637.2,0.7965991]
[1729242917289,3.79154,2637.5,2637.3,0.98844859]
[1729242917604,3.79133,2637.6,2637.1,0.7965991]
[1729242917805,3.7915,2637.5,2637.2,0.98845177]
[1729242917984,3.7915,2637.5,2637.1,0.7965991]
[1729242918306,3.7915,2637.5,2637.2,0.98845227]
[1729242918511,3.7915,2637.5,2637.1,0.7965991]
[1729242918717,3.7915,2637.5,2637.2,0.98845867]
[1729242918885,3.79133,2637.6,2637.1,7.15048272]
[1729242919076,3.79133,2637.6,2637.2,1.78505368]
[1729242919277,3.79133,2637.6,2637.3,0.98845458]
[1729242919582,3.79133,2637.6,2637.2,2.45499458]
[1729242919812,4.58073,2637.8,2637.3,8.06964976]
[1729242920114,3.79119,2637.7,2637.4,1.78497614]
[1729242920304,6.23912548,2637.8,2637.5,0.98837704]
[1729242920475,4.58073,2637.8,2637.4,0.7965991]
[1729242920806,4.58073,2637.8,2637.5,0.98810796]
[1729242921020,4.58073,2637.8,2637.4,0.7965991]
[1729242921185,0.7896,2637.8,2637.5,0.98811826]
[1729242921519,3.79089,2637.9,2637.4,7.07418272]
[1729242921681,5.44928548,2637.9,2637.5,0.98796275]
[1729242921887,5.44928548,2637.9,2637.4,1.62420724]
[1729242921888,9.24029548,2637.9,2637.4,1.62420724]
[1729242922108,5.44928548,2637.9,2637.5,0.98796292]
[1729242922269,5.44928548,2637.9,2637.4,0.82760814]
[1729242922475,9.24028548,2637.9,2637.4,0.82760814]
[1729242922726,3.79104,2637.8,2637.4,2.48600362]
[1729242923010,3.79104,2637.8,2637.4,0.82760814]
[1729242925751,9.24030548,2637.9,2637.4,4.61920814]
[1729242925935,3.79089,2637.9,2637.4,2.48600362]
[1729242926139,3.79104,2637.8,2637.4,2.48600362]
[1729242928848,3.79097,2637.9,2637.5,0.04485533]
[1729242929756,5.44936548,2637.9,2637.5,0.04485533]
[1729242932814,3.79104,2637.8,2637.5,0.04485533]
[1729242936452,5.44943548,2637.8,2637.5,0.04485533]
[1729242936762,3.79104,2637.8,2637.5,0.04485533]
[1729242937756,5.44943548,2637.8,2637.5,0.04485533]
[1729242938051,9.24057548,2637.8,2637.5,0.04485533]
[1729242938349,5.44943548,2637.8,2637.5,0.04485533]
[1729242939342,9.24060548,2637.8,2637.5,0.04485533]
[1729242939961,3.79104,2637.8,2637.5,0.04485533]
[1729242940260,5.44943548,2637.8,2637.5,0.04485533]
[1729242941656,6.21481548,2637.6,2637.5,0.04485533]
[1729242941855,2.42349548,2637.6,2637.2,0.9870025]
[1729242942059,3.79175,2637.3,2637.0,0.7965991]
[1729242942352,3.79175,2637.3,2637.1,0.98703987]
[1729242942558,3.79175,2637.3,2637.0,0.7965991]
[1729242942716,3.79175,2637.3,2637.1,0.98705619]
[1729242942932,3.79175,2637.3,2637.0,0.7965991]
[1729242943175,3.79175,2637.3,2637.1,0.98705649]
[1729242943374,3.79175,2637.3,2637.0,0.7965991]
[1729242943666,3.79175,2637.3,2637.1,0.98706257]
[1729242943870,3.79175,2637.3,2637.1,0.04510175]
[1729242945175,3.7919,2637.2,2637.1,0.04510175]
[1729242945339,3.7919,2637.2,2637.1,1.03219658]
[1729242945767,4.59375,2637.3,2637.1,1.03221332]
[1729242945990,4.59375,2637.3,2637.1,0.04510175]
[1729242946339,8.38559,2637.3,2636.9,2.45499458]
[1729242946578,4.59375,2637.3,2637.2,0.045038]
[1729242946761,4.59375,2637.3,2636.9,2.45499458]
[1729242946981,4.59375,2637.3,2637.2,0.045038]
[1729242947150,4.59375,2637.3,2636.9,2.45499458]
[1729242947349,4.59375,2637.3,2637.2,0.04357374]
[1729242947887,4.59375,2637.3,2636.9,0.7965991]
[1729242948185,4.59375,2637.3,2637.0,1.03081858]
[1729242948389,4.59375,2637.3,2637.0,0.04375177]
[1729242949753,0.802,2637.3,2637.0,0.04375177]
[1729242950250,0.802,2637.3,2637.0,1.70214725]
[1729242950459,4.59379,2637.3,2637.0,1.70214725]
[1729242950862,0.802,2637.3,2637.0,1.70214725]
[1729242951065,3.79162,2637.4,2637.1,1.65839548]
[1729242951267,3.79162,2637.4,2637.2,0.04357935]
[1729242951663,3.79151,2637.5,2637.2,0.04357935]
[1729242951958,3.79158,2637.5,2637.2,0.04357935]
[1729242952293,3.79164,2637.4,2636.9,6.24729458]
[1729242952456,7.58335,2637.4,2637.3,0.04202414]
[1729242952652,7.58335,2637.4,2636.9,6.24729458]
[1729242952856,3.79164,2637.4,2637.3,0.03926659]
[1729242953056,4.62474,2637.4,2636.9,6.24729458]
[1729242953360,4.62474,2637.4,2637.3,0.03926659]
[1729242953581,4.62474,2637.4,2637.0,0.98698722]
[1729242953781,4.62474,2637.4,2637.3,0.03924986]
[1729242954056,4.62474,2637.4,2637.3,0.03925265]
[1729242954258,4.62474,2637.4,2637.0,0.98697534]
[1729242954475,4.62474,2637.4,2637.3,0.03925265]
[1729242954682,4.62474,2637.4,2637.0,0.98696474]
[1729242954887,4.62474,2637.4,2637.3,0.03925265]
[1729242955083,4.62474,2637.4,2637.0,0.98696484]
[1729242955393,4.62474,2637.4,2637.3,0.03925265]
[1729242955592,4.62474,2637.4,2637.0,1.65839548]
[1729242956203,4.62474,2637.4,2637.1,0.03942226]
[1729242958896,0.8331,2637.4,2637.1,0.03942226]
[1729242959571,4.62473,2637.4,2637.1,0.03942226]
[1729242962105,3.79163,2637.4,2637.1,0.03942226]
[1729242963886,3.79148,2637.5,2637.1,0.03942226]
[1729242964225,3.79148,2637.5,2637.1,1.69781774]
[1729242964900,3.79148,2637.5,2637.1,0.03942226]
[1729242965426,7.58306,2637.5,2637.1,0.03942226]
[1729242966621,7.58305,2637.5,2637.1,0.03942226]
[1729242966783,3.79163,2637.4,2637.1,0.03942226]
[1729242967845,4.55091,2637.6,2637.2,1.65839548]
[1729242968132,4.55091,2637.6,2637.3,0.03922199]
[1729242968283,4.55091,2637.6,2637.1,5.45029548]
[1729242968631,0.7595,2637.6,2637.3,1.65839548]
[1729242968838,3.79126,2637.7,2637.3,1.65839548]
[1729242969143,3.79126,2637.7,2637.4,0.0391358]
[1729242969905,3.79126,2637.7,2637.2,2.45499458]
[1729242970110,3.79148,2637.5,2637.3,0.03919969]
[1729242970323,6.20200548,2637.4,2636.9,0.7965991]
[1729242970639,3.79175,2637.3,2637.0,1.02505304]
[1729242970937,3.79175,2637.3,2637.0,0.03813228]
[1729242973046,3.7919,2637.2,2637.0,0.03813228]
[1729242973501,3.79175,2637.3,2637.0,0.03813228]
[1729242973907,3.79204,2637.1,2637.0,0.03813228]
[1729242974135,4.60034,2637.1,2636.8,2.45499458]
[1729242974325,4.60034,2637.1,2636.9,1.02513445]
[1729242974507,4.60034,2637.1,2636.9,0.0382185]
[1729242974908,3.79218,2637.0,2636.9,0.0382185]
[1729242975145,3.79218,2637.0,2636.9,1.02515315]
[1729242975740,3.79218,2637.0,2636.9,0.0382185]
[1729242976649,3.79218,2637.0,2636.9,1.02508585]
[1729242977067,3.79218,2637.0,2636.9,0.0382185]
[1729242977452,3.79218,2637.0,2636.8,1.65839548]
[1729242977642,3.79218,2637.0,2636.9,0.0382185]
[1729242977961,3.79218,2637.0,2636.7,2.45499458]
[1729242978169,3.79218,2637.0,2636.9,0.0382185]
[1729242978369,3.79233,2636.9,2636.8,0.03830472]
[1729242978667,3.79258,2636.8,2636.5,2.45499458]
[1729242978869,3.79258,2636.8,2636.6,0.98696483]
[1729242979170,3.79258,2636.8,2636.6,1.65839548]
[1729242979476,3.79229,2637.0,2636.7,1.65839548]
[1729242979844,3.79229,2637.0,2636.6,1.65839548]
[1729242980040,3.79229,2637.0,2636.5,4.5894791]
[1729242980041,4.60044,2637.1,2636.7,1.65839548]
[1729242980257,3.79247,2636.8,2636.6,1.65839548]
[1729242980429,3.79247,2636.8,2636.7,1.65839548]
[1729242980630,3.79234,2636.9,2636.7,1.65839548]
[1729242980832,3.79234,2636.9,2636.6,1.65839548]
[1729242981144,3.79247,2636.8,2636.6,1.65839548]
[1729242983033,3.79234,2636.9,2636.5,2.45499458]
[1729242983367,1.65839548,2636.6,2636.2,0.7965991]
[1729242983566,3.79348,2636.1,2636.0,23.0]
[1729242984381,5.45187548,2636.1,2636.0,23.0]
[1729242984584,7.23277803,2636.1,2636.0,23.0]
[1729242985175,6.22617548,2636.1,2636.0,23.0]
[1729242985359,4.56778,2636.1,2636.0,23.0]
[1729242985679,3.79348,2636.1,2636.0,23.0]
[1729242987558,3.79335,2636.2,2636.0,24.65839548]
[1729242987779,3.79335,2636.2,2636.0,23.0]
[1729242988875,3.79335,2636.2,2636.1,0.03942002]
[1729242994257,5.45174548,2636.2,2636.1,0.03942002]
[1729242994448,6.45692003,2636.2,2636.1,0.03942002]
[1729242996896,7.26302003,2636.2,2636.1,0.03942002]
[1729242997057,7.26302003,2636.2,2636.0,23.0]
[1729242997058,3.79348,2636.1,2636.0,23.0]
[1729242997395,6.25797548,2636.1,2636.0,23.0]
[1729242997696,7.74294548,2636.1,2636.0,23.0]
[1729243002492,10.74294548,2636.1,2636.0,23.0]
[1729243002799,12.41134096,2636.1,2636.0,23.0]
[1729243004476,12.41134096,2636.1,2636.0,22.1667]
[1729243004707,3.79475,2635.3,2634.6,4.56284]
[1729243005023,3.79475,2635.3,2634.6,10.01678548]
[1729243005024,3.79493,2635.1,2634.6,10.01678548]
[1729243005193,3.79493,2635.1,2634.7,1.65839548]
[1729243006016,3.79493,2635.1,2634.6,8.3584]
[1729243006221,3.79516,2635.0,2634.6,1.60314]
[1729243006419,5.45332548,2635.1,2634.6,1.60314]
[1729243006735,3.79493,2635.1,2634.6,7.05708548]
[1729243006887,3.79493,2635.1,2634.7,1.65839548]
[1729243007346,3.79493,2635.1,2634.6,7.05708548]
[1729243007933,3.79493,2635.1,2634.6,7.05716548]
[1729243008122,1.65839548,2635.2,2634.6,3.26153548]
[1729243008307,3.79494,2635.1,2634.6,3.26153548]
[1729243008837,5.45333548,2635.1,2634.6,0.7673]
[1729243009013,1.65839548,2635.1,2634.6,4.56292]
[1729243009207,1.65839548,2635.2,2634.6,6.22131548]
[1729243009409,3.79493,2635.1,2634.6,2.42569548]
[1729243009953,5.45332548,2635.1,2634.6,0.7673]
[1729243011095,5.45332548,2635.1,2634.6,4.5629]
[1729243011854,1.65839548,2635.1,2634.7,3.79549]
[1729243012058,5.45317548,2635.2,2634.7,3.79542]
[1729243012811,3.79468,2635.3,2634.8,1.65839548]
[1729243013021,1.6214691,2636.0,2635.2,1.65839548]
[1729243013022,0.7919,2635.7,2635.2,1.65839548]
[1729243013315,5.45222548,2635.9,2635.4,3.79441]
[1729243013514,3.79383,2635.9,2635.3,4.54495]
[1729243013714,3.79393,2635.8,2635.3,4.54495]
[1729243013958,1.65839548,2635.7,2635.3,4.54495]
[1729243016572,1.65839548,2635.8,2635.3,4.54495]
[1729243016884,5.45238548,2635.8,2635.3,5.54476755]
[1729243017235,3.79399,2635.8,2635.3,5.54476755]
[1729243017580,5.45222548,2635.9,2635.4,3.79442]
[1729243017765,3.79383,2635.9,2635.4,5.45281548]
[1729243017940,3.79366,2636.0,2635.5,5.45269548]
[1729243018138,3.79333,2636.2,2635.7,5.45240548]
[1729243018455,6.25478548,2636.3,2635.8,3.7939]
[1729243018831,3.7931,2636.4,2636.0,1.65839548]
[1729243019075,3.7931,2636.4,2635.9,6.25686102]
[1729243019261,3.79312,2636.4,2636.1,0.03731298]
[1729243019464,3.79312,2636.4,2636.0,0.03739647]
[1729243019637,3.79312,2636.4,2636.2,0.03722393]
[1729243019837,6.22999548,2636.5,2636.1,0.03731019]
[1729243020074,3.793,2636.5,2636.3,0.03713766]